[Event "Late-Titled-Tuesday-Blitz-September-19-2023"]
[Site "Chess.com"]
[Date "2023.09.19"]
[Round "2"]
[White "MessiKingdom"]
[Black "Baku_Boulevard"]
[Result "1-0"]
[WhiteElo "2630"]
[BlackElo "3034"]
[TimeControl "180+1"]
[EndTime "14:12:28 PDT"]
[Termination "MessiKingdom won by resignation"]

1. d4 {[%clk 0:03:00.9]} 1... Nf6 {[%clk 0:02:59.2]} 2. Bf4 {[%clk 0:03:00.8]}
2... c5 {[%clk 0:02:57.5]} 3. e3 {[%clk 0:03:00.8]} 3... Nd5 {[%clk 0:02:57.6]}
4. Bg3 {[%clk 0:03:00.8]} 4... Qb6 {[%clk 0:02:55.9]} 5. c4 {[%clk 0:03:01.1]}
5... Qxb2 {[%clk 0:02:51.3]} 6. cxd5 {[%clk 0:03:00.8]} 6... Qxa1 {[%clk
0:02:50.7]} 7. Qc2 {[%clk 0:03:00.9]} 7... Na6 {[%clk 0:02:31.7]} 8. Bxa6 {[%clk
0:02:57.2]} 8... bxa6 {[%clk 0:02:28.3]} 9. Nf3 {[%clk 0:02:57.5]} 9... d6
{[%clk 0:02:28.8]} 10. Nd2 {[%clk 0:02:43.7]} 10... Rb8 {[%clk 0:02:06.4]} 11.
Nb3 {[%clk 0:02:43.2]} 11... Qxb1+ {[%clk 0:01:52.2]} 12. Qxb1 {[%clk
0:02:42.1]} 12... c4 {[%clk 0:01:53.1]} 13. Qc2 {[%clk 0:02:27.3]} 13... cxb3
{[%clk 0:01:53.3]} 14. Qc7 {[%clk 0:02:27.5]} 14... b2 {[%clk 0:01:46.8]} 15.
Qxb8 {[%clk 0:02:26.8]} 1-0

[Event "Late-Titled-Tuesday-Blitz-September-19-2023"]
[Site "Chess.com"]
[Date "2023.09.19"]
[Round "2"]
[White "Taran2004"]
[Black "CSB7"]
[Result "0-1"]
[WhiteElo "2423"]
[BlackElo "2702"]
[TimeControl "180+1"]
[EndTime "14:12:42 PDT"]
[Termination "CSB7 won by resignation"]

1. e4 {[%clk 0:03:00.9]} 1... e5 {[%clk 0:02:57.8]} 2. Nf3 {[%clk 0:03:00.2]}
2... Nf6 {[%clk 0:02:58.5]} 3. Nxe5 {[%clk 0:02:59.7]} 3... Nc6 {[%clk
0:02:58.2]} 4. Nf3 {[%clk 0:02:57.7]} 4... Nxe4 {[%clk 0:02:55]} 5. Nc3 {[%clk
0:02:57.9]} 5... Nxc3 {[%clk 0:02:12.2]} 6. dxc3 {[%clk 0:02:58.8]} 6... d5
{[%clk 0:02:01.9]} 7. Bg5 {[%clk 0:02:58.4]} 7... Be7 {[%clk 0:02:01.1]} 8. Qd2
{[%clk 0:02:58.8]} 8... Bxg5 {[%clk 0:01:58]} 9. Qxg5 {[%clk 0:02:56.8]} 9...
Qxg5 {[%clk 0:01:56.7]} 10. Nxg5 {[%clk 0:02:57.7]} 10... f6 {[%clk 0:01:43.3]}
11. Nf3 {[%clk 0:02:57]} 11... Bg4 {[%clk 0:01:43.5]} 12. Nd4 {[%clk 0:02:46.6]}
12... Ne5 {[%clk 0:01:33.6]} 13. f3 {[%clk 0:02:43.9]} 13... Bd7 {[%clk
0:01:32.7]} 14. O-O-O {[%clk 0:02:43.1]} 14... O-O-O {[%clk 0:01:29.4]} 15. Bd3
{[%clk 0:02:41.1]} 15... c5 {[%clk 0:01:24.4]} 16. Nf5 {[%clk 0:02:30.7]} 16...
Nxd3+ {[%clk 0:01:23.5]} 0-1

[Event "Late-Titled-Tuesday-Blitz-September-19-2023"]
[Site "Chess.com"]
[Date "2023.09.19"]
[Round "2"]
[White "davigator"]
[Black "rdarruda"]
[Result "0-1"]
[WhiteElo "2330"]
[BlackElo "2507"]
[TimeControl "180+1"]
[EndTime "14:12:46 PDT"]
[Termination "rdarruda won by resignation"]

1. e4 {[%clk 0:03:00.9]} 1... c5 {[%clk 0:02:33.9]} 2. Nf3 {[%clk 0:03:00]} 2...
Nc6 {[%clk 0:02:34.5]} 3. d4 {[%clk 0:02:58.1]} 3... cxd4 {[%clk 0:02:35.4]} 4.
Nxd4 {[%clk 0:02:58]} 4... e5 {[%clk 0:02:36.1]} 5. Nb5 {[%clk 0:02:57.3]} 5...
a6 {[%clk 0:02:36.7]} 6. Nd6+ {[%clk 0:02:56.5]} 6... Bxd6 {[%clk 0:02:37.4]} 7.
Qxd6 {[%clk 0:02:56.4]} 7... Qe7 {[%clk 0:02:38.3]} 8. Qd1 {[%clk 0:02:55.8]}
8... Nf6 {[%clk 0:02:37.3]} 9. Nc3 {[%clk 0:02:56.1]} 9... d6 {[%clk 0:02:37.8]}
10. Bg5 {[%clk 0:02:56]} 10... Be6 {[%clk 0:02:38.3]} 11. Qd2 {[%clk 0:02:53.4]}
11... O-O {[%clk 0:02:37.5]} 12. O-O-O {[%clk 0:02:53]} 12... Rfd8 {[%clk
0:02:36.6]} 13. f3 {[%clk 0:02:51.3]} 13... h6 {[%clk 0:02:35.4]} 14. Be3 {[%clk
0:02:50.8]} 14... d5 {[%clk 0:02:34.6]} 15. exd5 {[%clk 0:02:50.8]} 15... Nxd5
{[%clk 0:02:32.8]} 16. Nxd5 {[%clk 0:02:49.9]} 16... Rxd5 {[%clk 0:02:32.8]} 17.
Qf2 {[%clk 0:02:49.4]} 17... Rxd1+ {[%clk 0:02:32]} 18. Kxd1 {[%clk 0:02:50.1]}
18... Bxa2 {[%clk 0:02:25.9]} 19. b3 {[%clk 0:02:42.2]} 19... a5 {[%clk
0:02:25.3]} 20. Bc4 {[%clk 0:02:37.8]} 20... a4 {[%clk 0:02:20.9]} 21. Bc5
{[%clk 0:02:34.9]} 21... Qd7+ {[%clk 0:02:16.6]} 22. Kc1 {[%clk 0:02:31.6]}
22... axb3 {[%clk 0:01:53]} 23. Rd1 {[%clk 0:02:17.6]} 23... b2+ {[%clk
0:01:48.8]} 0-1

[Event "Late-Titled-Tuesday-Blitz-September-19-2023"]
[Site "Chess.com"]
[Date "2023.09.19"]
[Round "2"]
[White "Michalczak"]
[Black "Botvinnak"]
[Result "1-0"]
[WhiteElo "2507"]
[BlackElo "2332"]
[TimeControl "180+1"]
[EndTime "14:13:15 PDT"]
[Termination "Michalczak won by resignation"]

1. e4 {[%clk 0:03:00.9]} 1... c5 {[%clk 0:02:52.1]} 2. c3 {[%clk 0:03:00.4]}
2... d5 {[%clk 0:02:49.2]} 3. exd5 {[%clk 0:03:00.1]} 3... Qxd5 {[%clk
0:02:49.5]} 4. Nf3 {[%clk 0:03:00.8]} 4... Nf6 {[%clk 0:02:49]} 5. Na3 {[%clk
0:03:00.9]} 5... Qd8 {[%clk 0:02:42.4]} 6. Bc4 {[%clk 0:03:00.2]} 6... Nc6
{[%clk 0:02:39.1]} 7. O-O {[%clk 0:02:59.4]} 7... e6 {[%clk 0:02:39.5]} 8. Qe2
{[%clk 0:02:59.9]} 8... Bd6 {[%clk 0:02:39.3]} 9. Rd1 {[%clk 0:02:59.7]} 9...
O-O {[%clk 0:02:39.1]} 10. d4 {[%clk 0:02:58.4]} 10... cxd4 {[%clk 0:02:39.6]}
11. Nb5 {[%clk 0:02:58.9]} 11... Bc5 {[%clk 0:02:35.9]} 12. Nbxd4 {[%clk
0:02:57.8]} 12... Nxd4 {[%clk 0:02:35]} 13. Nxd4 {[%clk 0:02:57.1]} 13... Qb6
{[%clk 0:02:35.3]} 14. b4 {[%clk 0:02:54.6]} 14... Bxd4 {[%clk 0:02:33.7]} 15.
Rxd4 {[%clk 0:02:55.5]} 15... a5 {[%clk 0:02:34]} 16. Bg5 {[%clk 0:02:39.1]}
16... Nd5 {[%clk 0:02:24.5]} 17. Rh4 {[%clk 0:02:24.9]} 17... Qc7 {[%clk
0:02:15.9]} 18. Qh5 {[%clk 0:02:03.8]} 18... h6 {[%clk 0:02:05.3]} 19. Bxh6
{[%clk 0:02:04.1]} 19... gxh6 {[%clk 0:02:04.9]} 20. Rg4+ {[%clk 0:01:44.8]}
20... Kh7 {[%clk 0:01:59.3]} 21. Bd3+ {[%clk 0:01:44.3]} 21... f5 {[%clk
0:01:52.6]} 22. Qg6+ {[%clk 0:01:44.3]} 22... Kh8 {[%clk 0:01:52.7]} 23. Qxh6+
{[%clk 0:01:44.6]} 23... Qh7 {[%clk 0:01:53.1]} 24. Qxf8+ {[%clk 0:01:44.6]} 1-0

[Event "Late-Titled-Tuesday-Blitz-September-19-2023"]
[Site "Chess.com"]
[Date "2023.09.19"]
[Round "2"]
[White "ATM622"]
[Black "martinez_95"]
[Result "1-0"]
[WhiteElo "2448"]
[BlackElo "2185"]
[TimeControl "180+1"]
[EndTime "14:13:16 PDT"]
[Termination "ATM622 won by resignation"]

1. d4 {[%clk 0:03:00.9]} 1... Nf6 {[%clk 0:02:38.4]} 2. c4 {[%clk 0:02:55.3]}
2... c5 {[%clk 0:02:38.5]} 3. d5 {[%clk 0:02:54.6]} 3... e6 {[%clk 0:02:39]} 4.
Nc3 {[%clk 0:02:53.3]} 4... exd5 {[%clk 0:02:39.6]} 5. cxd5 {[%clk 0:02:54.2]}
5... d6 {[%clk 0:02:40.1]} 6. g3 {[%clk 0:02:54.5]} 6... g6 {[%clk 0:02:40.7]}
7. Bg2 {[%clk 0:02:55.1]} 7... Bg7 {[%clk 0:02:41.3]} 8. Nf3 {[%clk 0:02:55.8]}
8... O-O {[%clk 0:02:42]} 9. O-O {[%clk 0:02:56.5]} 9... a6 {[%clk 0:02:41.5]}
10. a4 {[%clk 0:02:55.8]} 10... Re8 {[%clk 0:02:42]} 11. Nd2 {[%clk 0:02:55.9]}
11... Nbd7 {[%clk 0:02:41.6]} 12. Nc4 {[%clk 0:02:56.6]} 12... Ne5 {[%clk
0:02:42]} 13. Nxe5 {[%clk 0:02:57.3]} 13... Rxe5 {[%clk 0:02:42.6]} 14. e4
{[%clk 0:02:58]} 14... Re8 {[%clk 0:02:41.2]} 15. Re1 {[%clk 0:02:57]} 15... Rb8
{[%clk 0:02:36.8]} 16. a5 {[%clk 0:02:57.1]} 16... b5 {[%clk 0:02:37.1]} 17.
axb6 {[%clk 0:02:58]} 17... Rxb6 {[%clk 0:02:37.2]} 18. e5 {[%clk 0:02:53.6]}
18... Rxe5 {[%clk 0:02:32.5]} 19. Rxe5 {[%clk 0:02:52.1]} 19... dxe5 {[%clk
0:02:33.4]} 20. Na4 {[%clk 0:02:47.8]} 20... Rd6 {[%clk 0:02:31]} 21. Nxc5
{[%clk 0:02:43.2]} 21... Nxd5 {[%clk 0:02:17.3]} 22. Ne4 {[%clk 0:02:38.2]}
22... Rd7 {[%clk 0:02:17.3]} 23. Bh3 {[%clk 0:02:21.6]} 23... Ne3 {[%clk
0:02:12.2]} 24. Qxd7 {[%clk 0:01:54.4]} 24... Bxd7 {[%clk 0:02:10.8]} 25. Bxd7
{[%clk 0:01:54.3]} 25... Nc2 {[%clk 0:02:02.1]} 26. Rxa6 {[%clk 0:01:49.3]}
26... Qxd7 {[%clk 0:01:58.1]} 27. Ra8+ {[%clk 0:01:48.7]} 1-0

[Event "Late-Titled-Tuesday-Blitz-September-19-2023"]
[Site "Chess.com"]
[Date "2023.09.19"]
[Round "2"]
[White "andrzej"]
[Black "matagordo"]
[Result "1-0"]
[WhiteElo "2459"]
[BlackElo "2206"]
[TimeControl "180+1"]
[EndTime "14:13:28 PDT"]
[Termination "andrzej won by resignation"]

1. e4 {[%clk 0:03:00.9]} 1... e6 {[%clk 0:03:00.1]} 2. d4 {[%clk 0:02:59.3]}
2... d5 {[%clk 0:03:00.7]} 3. Nc3 {[%clk 0:02:59.8]} 3... Nf6 {[%clk 0:03:00.8]}
4. e5 {[%clk 0:03:00.4]} 4... Nfd7 {[%clk 0:03:01.3]} 5. f4 {[%clk 0:03:01]}
5... c5 {[%clk 0:03:01.7]} 6. Nf3 {[%clk 0:03:01.6]} 6... Nc6 {[%clk 0:03:02.4]}
7. Be3 {[%clk 0:03:02]} 7... Be7 {[%clk 0:03:02.5]} 8. Qd2 {[%clk 0:03:01.8]}
8... O-O {[%clk 0:03:03.1]} 9. dxc5 {[%clk 0:03:01.4]} 9... Qa5 {[%clk
0:03:01.8]} 10. a3 {[%clk 0:02:52.8]} 10... Nxc5 {[%clk 0:02:44.8]} 11. O-O-O
{[%clk 0:02:50.4]} 11... Na4 {[%clk 0:02:31.5]} 12. Nxa4 {[%clk 0:02:36.1]}
12... Qxa4 {[%clk 0:02:30.9]} 13. Kb1 {[%clk 0:02:28.9]} 13... a6 {[%clk
0:02:29.5]} 14. Bd3 {[%clk 0:02:28.5]} 14... b5 {[%clk 0:02:28.7]} 15. h4 {[%clk
0:02:27]} 15... b4 {[%clk 0:02:28.7]} 16. Bxh7+ {[%clk 0:02:12.3]} 16... Kxh7
{[%clk 0:02:26.6]} 17. Ng5+ {[%clk 0:02:12.3]} 17... Kg8 {[%clk 0:02:25.5]} 18.
Qd3 {[%clk 0:02:11.3]} 18... Bxg5 {[%clk 0:02:08]} 19. hxg5 {[%clk 0:02:10.4]}
19... g6 {[%clk 0:02:06.5]} 20. Bc5 {[%clk 0:02:06.5]} 20... Bd7 {[%clk
0:01:59.5]} 21. Qh3 {[%clk 0:02:01.7]} 1-0

[Event "Late-Titled-Tuesday-Blitz-September-19-2023"]
[Site "Chess.com"]
[Date "2023.09.19"]
[Round "2"]
[White "Hikaru"]
[Black "DucksParadise"]
[Result "1-0"]
[WhiteElo "3246"]
[BlackElo "2644"]
[TimeControl "180+1"]
[EndTime "14:13:29 PDT"]
[Termination "Hikaru won by resignation"]

1. Nf3 {[%clk 0:03:00.9]} 1... Nf6 {[%clk 0:02:57.4]} 2. b3 {[%clk 0:03:00.2]}
2... g6 {[%clk 0:02:55.2]} 3. Bb2 {[%clk 0:03:00.6]} 3... Bg7 {[%clk 0:02:54.9]}
4. d4 {[%clk 0:03:01.2]} 4... O-O {[%clk 0:02:52.8]} 5. e3 {[%clk 0:03:01.8]}
5... d6 {[%clk 0:02:52.4]} 6. c4 {[%clk 0:03:01.9]} 6... c5 {[%clk 0:02:51.6]}
7. Be2 {[%clk 0:03:01.8]} 7... cxd4 {[%clk 0:02:40.5]} 8. Nxd4 {[%clk
0:03:02.7]} 8... Nc6 {[%clk 0:02:40.3]} 9. Nxc6 {[%clk 0:03:00.7]} 9... bxc6
{[%clk 0:02:41.2]} 10. O-O {[%clk 0:03:00.7]} 10... c5 {[%clk 0:02:38.8]} 11.
Nc3 {[%clk 0:02:59.8]} 11... Bb7 {[%clk 0:02:37.9]} 12. Qc2 {[%clk 0:02:58.7]}
12... Qc7 {[%clk 0:02:31.9]} 13. Rad1 {[%clk 0:02:58.2]} 13... Rfd8 {[%clk
0:02:31.1]} 14. e4 {[%clk 0:02:58.6]} 14... Nxe4 {[%clk 0:02:22.6]} 15. Nb5
{[%clk 0:02:56.9]} 15... Qb6 {[%clk 0:02:18]} 16. Bxg7 {[%clk 0:02:57.6]} 16...
Kxg7 {[%clk 0:02:17.8]} 17. Rfe1 {[%clk 0:02:58.5]} 17... a6 {[%clk 0:02:14.5]}
18. Na3 {[%clk 0:02:55.7]} 18... Qb4 {[%clk 0:02:12.4]} 19. Nb1 {[%clk
0:02:54.5]} 19... e5 {[%clk 0:02:07.5]} 20. Bf1 {[%clk 0:02:50.2]} 20... f5
{[%clk 0:02:00.8]} 21. f3 {[%clk 0:02:50.4]} 21... Nf6 {[%clk 0:02:00.2]} 22.
Nc3 {[%clk 0:02:51.1]} 22... Rd7 {[%clk 0:01:52.6]} 23. Qb2 {[%clk 0:02:46.1]}
23... Rad8 {[%clk 0:01:50.3]} 24. f4 {[%clk 0:02:43.1]} 24... e4 {[%clk
0:01:43.8]} 25. Re2 {[%clk 0:02:36.1]} 25... Kf7 {[%clk 0:01:42.9]} 26. Red2
{[%clk 0:02:36.3]} 26... Qb6 {[%clk 0:01:39.1]} 27. Be2 {[%clk 0:02:34.1]} 27...
Bc6 {[%clk 0:01:32.1]} 28. Rc1 {[%clk 0:02:32.1]} 28... Qb7 {[%clk 0:01:31.5]}
29. Nd1 {[%clk 0:02:32.5]} 29... Nh5 {[%clk 0:01:21.1]} 30. Bxh5 {[%clk
0:02:31.6]} 30... gxh5 {[%clk 0:01:21]} 31. Ne3 {[%clk 0:02:32.3]} 31... Rg8
{[%clk 0:01:18.5]} 32. Nxf5 {[%clk 0:02:29.7]} 32... e3 {[%clk 0:01:17.6]} 33.
Nh6+ {[%clk 0:02:24.2]} 1-0

[Event "Late-Titled-Tuesday-Blitz-September-19-2023"]
[Site "Chess.com"]
[Date "2023.09.19"]
[Round "2"]
[White "Grig1508"]
[Black "UK_23"]
[Result "0-1"]
[WhiteElo "2056"]
[BlackElo "2430"]
[TimeControl "180+1"]
[EndTime "14:13:41 PDT"]
[Termination "UK_23 won by resignation"]

1. e4 {[%clk 0:03:00.9]} 1... e5 {[%clk 0:02:59.6]} 2. Nf3 {[%clk 0:03:00.7]}
2... Nc6 {[%clk 0:02:59.5]} 3. d4 {[%clk 0:03:01.1]} 3... exd4 {[%clk
0:02:59.7]} 4. Nxd4 {[%clk 0:03:01.1]} 4... Nf6 {[%clk 0:02:59.3]} 5. Nxc6
{[%clk 0:03:01]} 5... bxc6 {[%clk 0:02:59.2]} 6. e5 {[%clk 0:03:01.7]} 6... Qe7
{[%clk 0:02:59.5]} 7. Qe2 {[%clk 0:03:02]} 7... Nd5 {[%clk 0:02:59.8]} 8. c4
{[%clk 0:03:02.1]} 8... Nb6 {[%clk 0:02:58.5]} 9. Nc3 {[%clk 0:02:53.7]} 9... g6
{[%clk 0:02:58.3]} 10. g3 {[%clk 0:02:40.1]} 10... Bg7 {[%clk 0:02:58.2]} 11. f4
{[%clk 0:02:38.5]} 11... O-O {[%clk 0:02:57.5]} 12. Bg2 {[%clk 0:02:37.8]} 12...
f6 {[%clk 0:02:53.3]} 13. Be3 {[%clk 0:01:57.6]} 13... fxe5 {[%clk 0:02:50.7]}
14. c5 {[%clk 0:01:57.2]} 14... exf4 {[%clk 0:02:41.4]} 15. cxb6 {[%clk
0:01:36]} 15... Qxe3 {[%clk 0:02:28.5]} 16. Qxe3 {[%clk 0:01:20.6]} 16... fxe3
{[%clk 0:02:29.4]} 17. bxc7 {[%clk 0:01:20.8]} 17... Be5 {[%clk 0:02:18.2]} 18.
Ke2 {[%clk 0:01:17.6]} 18... Bxc7 {[%clk 0:02:17.9]} 19. Kxe3 {[%clk 0:01:17.3]}
19... Bb6+ {[%clk 0:02:17.2]} 20. Kd2 {[%clk 0:01:11]} 20... Rf2+ {[%clk
0:02:15.4]} 21. Ne2 {[%clk 0:01:09.6]} 21... Rxg2 {[%clk 0:02:12.8]} 0-1

[Event "Late-Titled-Tuesday-Blitz-September-19-2023"]
[Site "Chess.com"]
[Date "2023.09.19"]
[Round "2"]
[White "DishonorOnYourCow"]
[Black "imdarealist"]
[Result "1-0"]
[WhiteElo "2484"]
[BlackElo "2247"]
[TimeControl "180+1"]
[EndTime "14:14:09 PDT"]
[Termination "DishonorOnYourCow won by resignation"]

1. d4 {[%clk 0:02:53.2]} 1... d5 {[%clk 0:02:58.8]} 2. c4 {[%clk 0:02:53.8]}
2... e6 {[%clk 0:02:58.5]} 3. Nc3 {[%clk 0:02:53.3]} 3... Nf6 {[%clk 0:02:57.4]}
4. cxd5 {[%clk 0:02:53.1]} 4... exd5 {[%clk 0:02:58.3]} 5. Bg5 {[%clk
0:02:52.9]} 5... c6 {[%clk 0:02:58.6]} 6. e3 {[%clk 0:02:53.5]} 6... Qb6 {[%clk
0:02:58.8]} 7. Qc2 {[%clk 0:02:52.8]} 7... Ne4 {[%clk 0:02:59.1]} 8. Bf4 {[%clk
0:02:47.8]} 8... Be6 {[%clk 0:02:50.4]} 9. Bd3 {[%clk 0:02:45.9]} 9... Nxc3
{[%clk 0:02:46.6]} 10. bxc3 {[%clk 0:02:46.8]} 10... Nd7 {[%clk 0:02:45.3]} 11.
Ne2 {[%clk 0:02:46.6]} 11... Nf6 {[%clk 0:02:44.7]} 12. O-O {[%clk 0:02:46.2]}
12... a6 {[%clk 0:02:34.1]} 13. Rab1 {[%clk 0:02:45.6]} 13... Qa7 {[%clk
0:02:34.6]} 14. f3 {[%clk 0:02:41.5]} 14... Be7 {[%clk 0:02:32.3]} 15. e4 {[%clk
0:02:41.6]} 15... O-O {[%clk 0:02:27.9]} 16. e5 {[%clk 0:02:41.8]} 16... Nd7
{[%clk 0:02:26.1]} 17. Bxh7+ {[%clk 0:02:41.5]} 17... Kh8 {[%clk 0:02:26.8]} 18.
Bf5 {[%clk 0:02:41]} 18... c5 {[%clk 0:02:23.7]} 19. Be3 {[%clk 0:02:38.8]}
19... cxd4 {[%clk 0:02:18.2]} 20. cxd4 {[%clk 0:02:33.2]} 20... Nxe5 {[%clk
0:02:17]} 21. Nf4 {[%clk 0:02:25.6]} 21... Nc4 {[%clk 0:02:05.6]} 22. Bf2 {[%clk
0:02:10]} 22... Bc8 {[%clk 0:01:49.2]} 23. Nxd5 {[%clk 0:02:06.3]} 23... Bg5
{[%clk 0:01:35.3]} 24. Bxc8 {[%clk 0:02:00.4]} 24... Raxc8 {[%clk 0:01:36.2]}
25. Qf5 {[%clk 0:02:00]} 25... Bh6 {[%clk 0:01:28.1]} 26. Ne7 {[%clk 0:01:39.8]}
26... Rcd8 {[%clk 0:01:17]} 27. d5 {[%clk 0:01:38.1]} 27... Be3 {[%clk
0:01:16.1]} 28. Qh5+ {[%clk 0:01:35.3]} 28... Bh6 {[%clk 0:01:15.1]} 29. Bxa7
{[%clk 0:01:35.1]} 1-0

[Event "Late-Titled-Tuesday-Blitz-September-19-2023"]
[Site "Chess.com"]
[Date "2023.09.19"]
[Round "2"]
[White "Mihajlovskij"]
[Black "Cambek64"]
[Result "0-1"]
[WhiteElo "2242"]
[BlackElo "2475"]
[TimeControl "180+1"]
[EndTime "14:14:09 PDT"]
[Termination "Cambek64 won by resignation"]

1. e4 {[%clk 0:02:50.7]} 1... c5 {[%clk 0:02:58.7]} 2. Nf3 {[%clk 0:02:50.5]}
2... e6 {[%clk 0:02:58.7]} 3. d4 {[%clk 0:02:50.7]} 3... cxd4 {[%clk 0:02:59.3]}
4. Nxd4 {[%clk 0:02:51.6]} 4... Nf6 {[%clk 0:02:59.1]} 5. Nc3 {[%clk 0:02:52.1]}
5... Bb4 {[%clk 0:02:58]} 6. Nb5 {[%clk 0:02:49.1]} 6... Qa5 {[%clk 0:02:39.3]}
7. Bd2 {[%clk 0:02:39.9]} 7... a6 {[%clk 0:02:36.7]} 8. Nd4 {[%clk 0:02:21.9]}
8... Qc7 {[%clk 0:02:32.2]} 9. f3 {[%clk 0:02:20.7]} 9... O-O {[%clk 0:02:30.6]}
10. Bd3 {[%clk 0:02:20.1]} 10... b5 {[%clk 0:02:30.4]} 11. Qe2 {[%clk 0:02:14]}
11... Bb7 {[%clk 0:02:29.5]} 12. O-O-O {[%clk 0:02:13.3]} 12... Nc6 {[%clk
0:02:16.3]} 13. Nxc6 {[%clk 0:02:03.5]} 13... Bxc6 {[%clk 0:02:15.2]} 14. e5
{[%clk 0:01:58]} 14... Nd5 {[%clk 0:02:03.6]} 15. Nxd5 {[%clk 0:01:53.5]} 15...
Bxd2+ {[%clk 0:02:01.9]} 16. Rxd2 {[%clk 0:01:50.8]} 16... Bxd5 {[%clk
0:02:02.3]} 17. Kb1 {[%clk 0:01:51]} 17... b4 {[%clk 0:01:58.9]} 18. Be4 {[%clk
0:01:32.8]} 18... Bxe4 {[%clk 0:01:45]} 19. Qxe4 {[%clk 0:01:32.8]} 19... a5
{[%clk 0:01:44.7]} 20. Rhd1 {[%clk 0:01:32.3]} 20... Rfd8 {[%clk 0:01:43.4]} 21.
Rxd7 {[%clk 0:01:29]} 21... Qb6 {[%clk 0:01:35.7]} 22. R1d6 {[%clk 0:01:11.6]}
22... Qg1+ {[%clk 0:01:34]} 0-1

[Event "Late-Titled-Tuesday-Blitz-September-19-2023"]
[Site "Chess.com"]
[Date "2023.09.19"]
[Round "2"]
[White "Dewarfd"]
[Black "kleopl"]
[Result "0-1"]
[WhiteElo "2197"]
[BlackElo "2452"]
[TimeControl "180+1"]
[EndTime "14:14:11 PDT"]
[Termination "kleopl won by resignation"]

1. d4 {[%clk 0:03:00]} 1... Nf6 {[%clk 0:02:59.2]} 2. e3 {[%clk 0:03:00.2]} 2...
d5 {[%clk 0:02:58.1]} 3. Nf3 {[%clk 0:03:00]} 3... c5 {[%clk 0:02:57.5]} 4. dxc5
{[%clk 0:02:59.8]} 4... Nc6 {[%clk 0:02:56.1]} 5. Bb5 {[%clk 0:02:59.5]} 5...
Bg4 {[%clk 0:02:55.5]} 6. Nbd2 {[%clk 0:02:55.2]} 6... e6 {[%clk 0:02:55.1]} 7.
b4 {[%clk 0:02:54.4]} 7... Be7 {[%clk 0:02:44.7]} 8. a3 {[%clk 0:02:49.8]} 8...
O-O {[%clk 0:02:44.2]} 9. Bxc6 {[%clk 0:02:49.2]} 9... bxc6 {[%clk 0:02:43.9]}
10. c3 {[%clk 0:02:48.2]} 10... e5 {[%clk 0:02:42.7]} 11. Qc2 {[%clk 0:02:46.1]}
11... Qc7 {[%clk 0:02:30]} 12. e4 {[%clk 0:02:37.3]} 12... dxe4 {[%clk
0:02:16.8]} 13. Nxe4 {[%clk 0:02:37.2]} 13... Bxf3 {[%clk 0:02:17]} 14. gxf3
{[%clk 0:02:38]} 14... Nd5 {[%clk 0:02:15.1]} 15. Rg1 {[%clk 0:02:28.3]} 15...
f5 {[%clk 0:02:12.5]} 16. Ng5 {[%clk 0:02:21.9]} 16... Bxg5 {[%clk 0:02:11.2]}
17. Bxg5 {[%clk 0:02:20.6]} 17... Rae8 {[%clk 0:02:08.9]} 18. Rd1 {[%clk
0:02:15.2]} 18... e4 {[%clk 0:02:04.6]} 19. c4 {[%clk 0:02:10.8]} 19... exf3+
{[%clk 0:02:00]} 20. Kf1 {[%clk 0:02:10.7]} 20... Qxh2 {[%clk 0:01:54.6]} 21.
Rg3 {[%clk 0:00:49.6]} 21... Qh1+ {[%clk 0:01:53.2]} 22. Rg1 {[%clk 0:00:47.3]}
22... Qh3+ {[%clk 0:01:53.2]} 0-1

[Event "Late-Titled-Tuesday-Blitz-September-19-2023"]
[Site "Chess.com"]
[Date "2023.09.19"]
[Round "2"]
[White "jup1978"]
[Black "Mops_2004"]
[Result "0-1"]
[WhiteElo "2465"]
[BlackElo "2803"]
[TimeControl "180+1"]
[EndTime "14:14:14 PDT"]
[Termination "Mops_2004 won by resignation"]

1. Nf3 {[%clk 0:03:00.9]} 1... g6 {[%clk 0:03:00.1]} 2. d4 {[%clk 0:03:00.3]}
2... Bg7 {[%clk 0:03:00.5]} 3. g3 {[%clk 0:03:01]} 3... d6 {[%clk 0:02:59.7]} 4.
Bg2 {[%clk 0:03:01.3]} 4... Nf6 {[%clk 0:03:00.4]} 5. O-O {[%clk 0:03:01.4]}
5... O-O {[%clk 0:03:01.1]} 6. b3 {[%clk 0:03:00.6]} 6... e5 {[%clk 0:03:00.8]}
7. dxe5 {[%clk 0:02:59.1]} 7... dxe5 {[%clk 0:03:01.7]} 8. Qxd8 {[%clk
0:02:57.9]} 8... Rxd8 {[%clk 0:03:02.6]} 9. Bb2 {[%clk 0:02:57.9]} 9... e4
{[%clk 0:03:02.6]} 10. Ng5 {[%clk 0:02:49.4]} 10... Bf5 {[%clk 0:02:38.5]} 11.
Na3 {[%clk 0:02:36.1]} 11... h6 {[%clk 0:02:36.6]} 12. Nh3 {[%clk 0:02:35.1]}
12... Nc6 {[%clk 0:02:33]} 13. Rad1 {[%clk 0:02:32.9]} 13... Nb4 {[%clk
0:02:17.8]} 14. c3 {[%clk 0:02:31.3]} 14... Nbd5 {[%clk 0:02:01.8]} 15. Nf4
{[%clk 0:02:20.8]} 15... Nxf4 {[%clk 0:01:59.6]} 16. gxf4 {[%clk 0:02:21.7]}
16... Nd5 {[%clk 0:01:55.4]} 17. e3 {[%clk 0:02:15.8]} 17... Nxc3 {[%clk
0:01:46.5]} 18. Rxd8+ {[%clk 0:02:11.4]} 18... Rxd8 {[%clk 0:01:45.9]} 19. Bxc3
{[%clk 0:02:07.5]} 19... Bxc3 {[%clk 0:01:46.8]} 20. Nb5 {[%clk 0:02:07.1]}
20... Bf6 {[%clk 0:01:33.3]} 21. Nxc7 {[%clk 0:01:52.4]} 21... Rd2 {[%clk
0:01:32.9]} 22. a4 {[%clk 0:01:46.5]} 22... a6 {[%clk 0:01:28.2]} 23. Rc1 {[%clk
0:01:38.7]} 23... Bh4 {[%clk 0:01:25.2]} 24. Rf1 {[%clk 0:01:37.3]} 24... Bd8
{[%clk 0:01:14.2]} 25. Rc1 {[%clk 0:01:29.9]} 25... Bxc7 {[%clk 0:01:13.2]} 26.
Rxc7 {[%clk 0:01:29.5]} 26... Rd1+ {[%clk 0:01:13.6]} 0-1

[Event "Late-Titled-Tuesday-Blitz-September-19-2023"]
[Site "Chess.com"]
[Date "2023.09.19"]
[Round "2"]
[White "rikchessmx"]
[Black "zverr1"]
[Result "1/2-1/2"]
[WhiteElo "2338"]
[BlackElo "2499"]
[TimeControl "180+1"]
[EndTime "14:14:21 PDT"]
[Termination "Game drawn by repetition"]

1. e4 {[%clk 0:00:55]} 1... c5 {[%clk 0:02:59.4]} 2. Nf3 {[%clk 0:00:54.5]} 2...
Nc6 {[%clk 0:02:59.7]} 3. d4 {[%clk 0:00:55.1]} 3... cxd4 {[%clk 0:03:00.6]} 4.
Nxd4 {[%clk 0:00:55.4]} 4... Nf6 {[%clk 0:03:01.5]} 5. Nxc6 {[%clk 0:00:55.5]}
5... bxc6 {[%clk 0:02:58.8]} 6. Bd3 {[%clk 0:00:56.4]} 6... g6 {[%clk
0:02:51.2]} 7. O-O {[%clk 0:00:57]} 7... Bg7 {[%clk 0:02:48]} 8. Nc3 {[%clk
0:00:57]} 8... d6 {[%clk 0:02:47]} 9. f4 {[%clk 0:00:56.4]} 9... O-O {[%clk
0:02:14.4]} 10. Qe1 {[%clk 0:00:56.8]} 10... Ba6 {[%clk 0:01:58.7]} 11. Kh1
{[%clk 0:00:56.9]} 11... Bxd3 {[%clk 0:01:57.9]} 12. cxd3 {[%clk 0:00:57.8]}
12... Nd7 {[%clk 0:01:35.6]} 13. Be3 {[%clk 0:00:53.1]} 13... Qa5 {[%clk
0:01:31.3]} 14. Nd5 {[%clk 0:00:46.3]} 14... Qd8 {[%clk 0:01:30.6]} 15. Nc3
{[%clk 0:00:46.3]} 15... Qa5 {[%clk 0:01:30.3]} 16. Nd5 {[%clk 0:00:45.8]} 16...
Qd8 {[%clk 0:01:29.1]} 17. Nc3 {[%clk 0:00:45.5]} 1/2-1/2